[Event "*** MasterClass Titled Tuesday Blitz"]
[Site "Chess.com"]
[Date "2017.12.12"]
[Round "5"]
[White "TomsKantans"]
[Black "matiss90"]
[Result "1-0"]
[WhiteElo "2459"]
[BlackElo "2333"]
[TimeControl "180+2"]
[EndTime "14:11:04 PST"]
[Termination "TomsKantans won on time"]

1. e4 {[%clk 0:03:01.9]} 1... c5 {[%clk 0:02:56.7]} 2. Nf3 {[%clk 0:03:02.8]}
2... Nc6 {[%clk 0:02:53.7]} 3. d4 {[%clk 0:03:01.9]} 3... cxd4 {[%clk
0:02:54.7]} 4. Nxd4 {[%clk 0:03:03.8]} 4... Nf6 {[%clk 0:02:55.3]} 5. Nc3 {[%clk
0:03:04.8]} 5... e5 {[%clk 0:02:56.5]} 6. Ndb5 {[%clk 0:03:05.8]} 6... d6 {[%clk
0:02:57.4]} 7. Bg5 {[%clk 0:03:05.8]} 7... a6 {[%clk 0:02:58.5]} 8. Na3 {[%clk
0:03:06.8]} 8... b5 {[%clk 0:02:59.4]} 9. Bxf6 {[%clk 0:03:06.3]} 9... gxf6
{[%clk 0:03:00.1]} 10. Nd5 {[%clk 0:03:07.7]} 10... Bg7 {[%clk 0:03:01.2]} 11.
Bd3 {[%clk 0:02:44.8]} 11... Be6 {[%clk 0:02:48.5]} 12. c3 {[%clk 0:02:31.2]}
12... f5 {[%clk 0:02:46.9]} 13. Nc2 {[%clk 0:02:24.7]} 13... fxe4 {[%clk
0:02:40]} 14. Bxe4 {[%clk 0:02:26.6]} 14... O-O {[%clk 0:02:40.8]} 15. g3 {[%clk
0:02:14.6]} 15... f5 {[%clk 0:02:31.5]} 16. Bg2 {[%clk 0:02:15.7]} 16... Kh8
{[%clk 0:01:39.4]} 17. O-O {[%clk 0:02:13.9]} 17... e4 {[%clk 0:01:32.5]} 18.
Nf4 {[%clk 0:01:56.6]} 18... Bg8 {[%clk 0:01:27.7]} 19. f3 {[%clk 0:01:50.5]}
19... d5 {[%clk 0:01:17.6]} 20. Kh1 {[%clk 0:01:51.3]} 20... Ra7 {[%clk
0:01:11]} 21. a4 {[%clk 0:01:49.9]} 21... bxa4 {[%clk 0:01:02.3]} 22. Rxa4
{[%clk 0:01:49.5]} 22... a5 {[%clk 0:01:00]} 23. Qe2 {[%clk 0:01:46.4]} 23...
Rb7 {[%clk 0:01:00.1]} 24. Nd4 {[%clk 0:01:32]} 24... Nxd4 {[%clk 0:00:56.6]}
25. cxd4 {[%clk 0:01:33.9]} 25... Qb6 {[%clk 0:00:57.6]} 26. fxe4 {[%clk
0:01:18.6]} 26... fxe4 {[%clk 0:00:49.8]} 27. Qh5 {[%clk 0:01:13.3]} 27... Bf7
{[%clk 0:00:24.4]} 28. Qd1 {[%clk 0:01:00.4]} 28... Qxb2 {[%clk 0:00:21.1]} 29.
Rxa5 {[%clk 0:01:01.4]} 29... Qxd4 {[%clk 0:00:20.8]} 30. Qxd4 {[%clk
0:00:55.3]} 30... Bxd4 {[%clk 0:00:22.5]} 31. Nxd5 {[%clk 0:00:52.3]} 31... Bg7
{[%clk 0:00:13.5]} 32. Bxe4 {[%clk 0:00:48.5]} 32... Bxd5 {[%clk 0:00:12]} 33.
Rxf8+ {[%clk 0:00:50.4]} 33... Bxf8 {[%clk 0:00:12.5]} 34. Rxd5 {[%clk
0:00:51.4]} 34... Re7 {[%clk 0:00:11.9]} 35. Bd3 {[%clk 0:00:50.5]} 35... Bh6
{[%clk 0:00:09.4]} 36. Kg2 {[%clk 0:00:51]} 36... Kg7 {[%clk 0:00:09.2]} 37. h4
{[%clk 0:00:50.6]} 37... Bc1 {[%clk 0:00:09.6]} 38. Rc5 {[%clk 0:00:49.5]} 38...
Be3 {[%clk 0:00:09.7]} 39. Rh5 {[%clk 0:00:49.8]} 39... h6 {[%clk 0:00:09.8]}
40. Rd5 {[%clk 0:00:51.5]} 40... Bc1 {[%clk 0:00:10.1]} 41. Rd6 {[%clk
0:00:51.9]} 41... Be3 {[%clk 0:00:06.2]} 42. Kf3 {[%clk 0:00:51.9]} 42... Bc1
{[%clk 0:00:06.5]} 43. Kg4 {[%clk 0:00:53]} 43... Be3 {[%clk 0:00:06.8]} 44. Bf5
{[%clk 0:00:49.7]} 44... Bc1 {[%clk 0:00:07.1]} 45. Rg6+ {[%clk 0:00:41.1]}
45... Kf7 {[%clk 0:00:07.2]} 46. Rc6 {[%clk 0:00:42.1]} 46... Be3 {[%clk
0:00:06.3]} 47. Kh5 {[%clk 0:00:42.9]} 47... Kg7 {[%clk 0:00:07]} 48. Bc2 {[%clk
0:00:38.3]} 48... Kh8 {[%clk 0:00:06.9]} 49. Bb3 {[%clk 0:00:36.4]} 49... Kg7
{[%clk 0:00:07]} 50. Rc8 {[%clk 0:00:37.6]} 50... Kf6 {[%clk 0:00:05.5]} 51. Rg8
{[%clk 0:00:36.9]} 51... Ke5 {[%clk 0:00:05.6]} 52. Bc2 {[%clk 0:00:33]} 52...
Kf6 {[%clk 0:00:04.5]} 53. Rg6+ {[%clk 0:00:29]} 53... Kf7 {[%clk 0:00:05.1]}
54. Bf5 {[%clk 0:00:29.9]} 54... Re5 {[%clk 0:00:05.1]} 55. g4 {[%clk
0:00:31.4]} 55... Re7 {[%clk 0:00:05]} 56. Rc6 {[%clk 0:00:29.5]} 56... Kg7
{[%clk 0:00:04.9]} 57. Be6 {[%clk 0:00:29.9]} 57... Kf6 {[%clk 0:00:04.3]} 58.
Bf5+ {[%clk 0:00:28.3]} 58... Kg7 {[%clk 0:00:04.9]} 59. Rg6+ {[%clk 0:00:29.3]}
59... Kf7 {[%clk 0:00:05.6]} 60. Ra6 {[%clk 0:00:24.2]} 60... Kg7 {[%clk
0:00:06.3]} 61. Ra5 {[%clk 0:00:23.4]} 61... Kf7 {[%clk 0:00:06.7]} 62. Rb5
{[%clk 0:00:23.7]} 62... Kg7 {[%clk 0:00:07.6]} 63. Bc2 {[%clk 0:00:23.9]} 63...
Kf7 {[%clk 0:00:08.1]} 64. Bb3+ {[%clk 0:00:24.9]} 64... Kg7 {[%clk 0:00:08.7]}
65. Rf5 {[%clk 0:00:26]} 65... Bd4 {[%clk 0:00:08.5]} 66. g5 {[%clk 0:00:25.4]}
66... hxg5 {[%clk 0:00:09.1]} 67. hxg5 {[%clk 0:00:23.4]} 67... Be3 {[%clk
0:00:09.4]} 68. Rb5 {[%clk 0:00:20.2]} 68... Bxg5 {[%clk 0:00:06.2]} 69. Kxg5
{[%clk 0:00:19.9]} 69... Rc7 {[%clk 0:00:06.6]} 70. Be6 {[%clk 0:00:19.2]} 70...
Ra7 {[%clk 0:00:05.1]} 71. Rb8 {[%clk 0:00:16.5]} 71... Ra5+ {[%clk 0:00:05.3]}
72. Bf5 {[%clk 0:00:17.7]} 72... Kf7 {[%clk 0:00:06]} 73. Rb7+ {[%clk
0:00:18.6]} 73... Ke8 {[%clk 0:00:06.6]} 74. Kf6 {[%clk 0:00:19.4]} 74... Kd8
{[%clk 0:00:06.8]} 75. Rd7+ {[%clk 0:00:18.5]} 75... Ke8 {[%clk 0:00:06.1]} 76.
Rc7 {[%clk 0:00:19.8]} 76... Ra8 {[%clk 0:00:04]} 77. Be6 {[%clk 0:00:17.9]}
77... Kd8 {[%clk 0:00:03.8]} 78. Rd7+ {[%clk 0:00:19.3]} 78... Kc8 {[%clk
0:00:04.6]} 79. Rf7+ {[%clk 0:00:14.2]} 79... Kb8 {[%clk 0:00:05.1]} 80. Bd5
{[%clk 0:00:13.5]} 80... Ra7 {[%clk 0:00:04.8]} 81. Rf8+ {[%clk 0:00:14.3]}
81... Kc7 {[%clk 0:00:05.7]} 82. Ke5 {[%clk 0:00:15.9]} 82... Ra5 {[%clk
0:00:04.9]} 83. Rf7+ {[%clk 0:00:17]} 83... Kb6 {[%clk 0:00:05.8]} 84. Kd6
{[%clk 0:00:18.3]} 84... Ra7 {[%clk 0:00:05.3]} 85. Rf3 {[%clk 0:00:19.1]} 85...
Ra5 {[%clk 0:00:05.8]} 86. Bc4 {[%clk 0:00:16.5]} 86... Ra4 {[%clk 0:00:05.1]}
87. Rb3+ {[%clk 0:00:16.6]} 87... Ka5 {[%clk 0:00:04.8]} 88. Kc5 {[%clk
0:00:16.9]} 88... Rb4 {[%clk 0:00:05]} 89. Ra3+ {[%clk 0:00:16.4]} 89... Ra4
{[%clk 0:00:05.6]} 90. Rf3 {[%clk 0:00:14.1]} 90... Ra1 {[%clk 0:00:02.6]} 91.
Rf8 {[%clk 0:00:14.3]} 1-0

[Event "*** MasterClass Titled Tuesday Blitz"]
[Site "Chess.com"]
[Date "2017.12.12"]
[Round "5"]
[White "florianschwabeneder"]
[Black "TheBigBoss04"]
[Result "1/2-1/2"]
[WhiteElo "2470"]
[BlackElo "2490"]
[TimeControl "180+2"]
[EndTime "14:12:09 PST"]
[Termination "Game drawn by agreement"]

1. Nf3 {[%clk 0:03:01.9]} 1... Nf6 {[%clk 0:02:58.4]} 2. b3 {[%clk 0:03:01.9]}
2... b5 {[%clk 0:02:54.9]} 3. e3 {[%clk 0:02:58.8]} 3... a6 {[%clk 0:02:55.4]}
4. c4 {[%clk 0:02:55]} 4... bxc4 {[%clk 0:02:56.1]} 5. bxc4 {[%clk 0:02:52.7]}
5... e6 {[%clk 0:02:48.3]} 6. Nc3 {[%clk 0:02:52.8]} 6... c5 {[%clk 0:02:46]} 7.
d4 {[%clk 0:02:49.1]} 7... cxd4 {[%clk 0:02:41.5]} 8. exd4 {[%clk 0:02:49.3]}
8... Bb4 {[%clk 0:02:42]} 9. Bd2 {[%clk 0:02:47.7]} 9... O-O {[%clk 0:02:28.5]}
10. Bd3 {[%clk 0:02:46.4]} 10... Be7 {[%clk 0:02:24.2]} 11. O-O {[%clk
0:02:44.5]} 11... d6 {[%clk 0:02:15.7]} 12. Re1 {[%clk 0:02:41.1]} 12... Nbd7
{[%clk 0:02:14.7]} 13. a4 {[%clk 0:02:30.1]} 13... Re8 {[%clk 0:02:08.5]} 14. a5
{[%clk 0:02:30.9]} 14... Qc7 {[%clk 0:02:07.1]} 15. Na4 {[%clk 0:02:28.8]} 15...
Bf8 {[%clk 0:01:59.2]} 16. Rb1 {[%clk 0:02:27.1]} 16... Bb7 {[%clk 0:01:47.9]}
17. Nb6 {[%clk 0:02:22]} 17... Rab8 {[%clk 0:01:48.2]} 18. Bg5 {[%clk
0:02:03.8]} 18... h6 {[%clk 0:01:41]} 19. Bh4 {[%clk 0:02:04.3]} 19... Bc6
{[%clk 0:01:23.6]} 20. d5 {[%clk 0:01:10.9]} 20... exd5 {[%clk 0:01:06.7]} 21.
Rxe8 {[%clk 0:01:10.5]} 21... Rxe8 {[%clk 0:01:00.2]} 22. cxd5 {[%clk
0:01:11.6]} 22... Nxd5 {[%clk 0:00:50.7]} 23. Nxd5 {[%clk 0:01:12.1]} 23... Bxd5
{[%clk 0:00:51.8]} 24. Bxa6 {[%clk 0:01:12.7]} 24... Bxf3 {[%clk 0:00:43.5]} 25.
Qxf3 {[%clk 0:01:07.7]} 25... Qxa5 {[%clk 0:00:44.3]} 26. Bf1 {[%clk 0:01:00.2]}
26... Ne5 {[%clk 0:00:41.6]} 27. Qb3 {[%clk 0:00:50.4]} 27... Be7 {[%clk
0:00:37.7]} 28. Bg3 {[%clk 0:00:51.3]} 28... Bf6 {[%clk 0:00:37.3]} 29. Rd1
{[%clk 0:00:47.8]} 29... Qc5 {[%clk 0:00:32.4]} 30. h3 {[%clk 0:00:42.5]} 30...
h5 {[%clk 0:00:25.9]} 31. Qa4 {[%clk 0:00:35.1]} 31... Rc8 {[%clk 0:00:20.8]}
32. Qe4 {[%clk 0:00:31.3]} 32... g6 {[%clk 0:00:18.4]} 33. Qf4 {[%clk
0:00:26.2]} 33... Bg7 {[%clk 0:00:18.8]} 34. Qe4 {[%clk 0:00:25.6]} 34... Rd8
{[%clk 0:00:16.9]} 35. Bh4 {[%clk 0:00:13]} 35... Rb8 {[%clk 0:00:17.6]} 36. Bg3
{[%clk 0:00:13.8]} 36... Rb2 {[%clk 0:00:18.2]} 37. Qd5 {[%clk 0:00:14.3]} 37...
Qxd5 {[%clk 0:00:16.4]} 38. Rxd5 {[%clk 0:00:15.2]} 38... Rb6 {[%clk 0:00:14.9]}
39. f4 {[%clk 0:00:13.6]} 39... Nd7 {[%clk 0:00:13.4]} 40. Bf2 {[%clk
0:00:14.2]} 40... Rc6 {[%clk 0:00:08.7]} 41. Bb5 {[%clk 0:00:14.5]} 41... Rc1+
{[%clk 0:00:10.2]} 42. Kh2 {[%clk 0:00:15.4]} 42... Nf6 {[%clk 0:00:08.5]} 43.
Rxd6 {[%clk 0:00:15.1]} 43... Ne4 {[%clk 0:00:08.8]} 44. Rd8+ {[%clk 0:00:15.7]}
44... Kh7 {[%clk 0:00:10.3]} 45. Bd4 {[%clk 0:00:15.3]} 45... Rd1 {[%clk
0:00:10.2]} 46. Bb6 {[%clk 0:00:15.5]} 46... Rb1 {[%clk 0:00:09.6]} 47. Bd3
{[%clk 0:00:14.6]} 47... Rb4 {[%clk 0:00:07.9]} 48. Ba5 {[%clk 0:00:10.4]} 48...
Ra4 {[%clk 0:00:08.8]} 49. Be1 {[%clk 0:00:09.9]} 49... Nc5 {[%clk 0:00:09]} 50.
Bc2 {[%clk 0:00:07.1]} 50... Ra2 {[%clk 0:00:09.4]} 51. Bd1 {[%clk 0:00:08.1]}
51... Ne6 {[%clk 0:00:09.9]} 52. Rd7 {[%clk 0:00:06.8]} 52... Nxf4 {[%clk
0:00:06.8]} 53. Bf3 {[%clk 0:00:07.5]} 53... Kg8 {[%clk 0:00:06.3]} 54. Bg3
{[%clk 0:00:07.2]} 54... Ne6 {[%clk 0:00:06.8]} 55. Bd5 {[%clk 0:00:08.2]} 55...
Re2 {[%clk 0:00:08]} 56. Rb7 {[%clk 0:00:06.9]} 56... Bf6 {[%clk 0:00:08.4]} 57.
Bf3 {[%clk 0:00:06.3]} 57... Re3 {[%clk 0:00:08.8]} 58. h4 {[%clk 0:00:06.5]}
58... Kg7 {[%clk 0:00:09.8]} 59. Bd5 {[%clk 0:00:06.7]} 59... Re2 {[%clk
0:00:07.3]} 60. Bc4 {[%clk 0:00:06.8]} 60... Re4 {[%clk 0:00:07.4]} 61. Bd5
{[%clk 0:00:08]} 61... Re3 {[%clk 0:00:08.3]} 62. Bc4 {[%clk 0:00:07.8]} 62...
Kg8 {[%clk 0:00:08.9]} 63. Bd5 {[%clk 0:00:08.1]} 63... Be5 {[%clk 0:00:08.4]}
64. Bxe5 {[%clk 0:00:08.9]} 64... Rxe5 {[%clk 0:00:10.1]} 65. Bxe6 {[%clk
0:00:10.1]} 65... Rxe6 {[%clk 0:00:11.7]} 66. g3 {[%clk 0:00:10.3]} 66... Re2+
{[%clk 0:00:11.8]} 67. Kg1 {[%clk 0:00:11.4]} 67... Ra2 {[%clk 0:00:12.6]} 68.
Rb6 {[%clk 0:00:11.5]} 68... Kg7 {[%clk 0:00:13.4]} 69. Rc6 {[%clk 0:00:12.7]}
69... Kf8 {[%clk 0:00:13.1]} 70. Rb6 {[%clk 0:00:13.6]} 70... Ke7 {[%clk
0:00:14]} 71. Rc6 {[%clk 0:00:14.8]} 71... Rb2 {[%clk 0:00:14.4]} 72. Ra6 {[%clk
0:00:15.3]} 72... Kf8 {[%clk 0:00:14.1]} 73. Rc6 {[%clk 0:00:16.1]} 73... Kg7
{[%clk 0:00:15.4]} 74. Rd6 {[%clk 0:00:17.3]} 74... Re2 {[%clk 0:00:12.5]} 75.
Ra6 {[%clk 0:00:18.1]} 75... Re6 {[%clk 0:00:12.6]} 76. Ra5 {[%clk 0:00:17]}
76... Kf6 {[%clk 0:00:11.5]} 77. Kf2 {[%clk 0:00:18.2]} 77... Re5 {[%clk
0:00:12.3]} 78. Ra6+ {[%clk 0:00:19.4]} 78... Kf5 {[%clk 0:00:13.7]} 79. Rb6
{[%clk 0:00:20.2]} 79... f6 {[%clk 0:00:14.6]} 80. Kf3 {[%clk 0:00:21.3]} 80...
Ra5 {[%clk 0:00:16]} 81. Rc6 {[%clk 0:00:22]} 81... Ra3+ {[%clk 0:00:17.1]} 82.
Kf2 {[%clk 0:00:23.2]} 82... Kg4 {[%clk 0:00:14.6]} 83. Rxf6 {[%clk 0:00:17]}
83... Ra2+ {[%clk 0:00:15.9]} 84. Kg1 {[%clk 0:00:12.3]} 84... Kxg3 {[%clk
0:00:13.4]} 85. Rxg6+ {[%clk 0:00:13.3]} 85... Kxh4 {[%clk 0:00:15]} 86. Rg8
{[%clk 0:00:14.3]} 86... Kh3 {[%clk 0:00:15.6]} 87. Kf1 {[%clk 0:00:12.1]} 87...
h4 {[%clk 0:00:15]} 88. Rg7 {[%clk 0:00:12.2]} 88... Kh2 {[%clk 0:00:15.9]} 89.
Rg8 {[%clk 0:00:13.3]} 89... h3 {[%clk 0:00:17]} 90. Rg7 {[%clk 0:00:14]} 90...
Rg2 {[%clk 0:00:18.1]} 91. Rh7 {[%clk 0:00:14.7]} 91... Rg3 {[%clk 0:00:18.8]}
92. Kf2 {[%clk 0:00:14.6]} 92... Rg8 {[%clk 0:00:19.2]} 93. Rf7 {[%clk
0:00:11.9]} 93... Kh1 {[%clk 0:00:19.8]} 94. Kf1 {[%clk 0:00:12.5]} 94... h2
{[%clk 0:00:20.7]} 95. Kf2 {[%clk 0:00:13.7]} 95... Ra8 {[%clk 0:00:20.5]} 96.
Rg7 {[%clk 0:00:13.1]} 96... Ra2+ {[%clk 0:00:21.1]} 97. Kf1 {[%clk 0:00:13.5]}
97... Ra1+ {[%clk 0:00:22.5]} 98. Kf2 {[%clk 0:00:14.5]} 98... Rg1 {[%clk
0:00:22.1]} 99. Rh7 {[%clk 0:00:13.9]} 99... Rg8 {[%clk 0:00:21.9]} 100. Rf7
{[%clk 0:00:14.4]} 100... Rg2+ {[%clk 0:00:20.9]} 101. Kf1 {[%clk 0:00:15.3]}
101... Rg1+ {[%clk 0:00:22.6]} 102. Kf2 {[%clk 0:00:16.4]} 102... Ra1 {[%clk
0:00:24.3]} 103. Rf8 {[%clk 0:00:15.8]} 103... Ra2+ {[%clk 0:00:23.4]} 104. Kf1
{[%clk 0:00:16.7]} 104... Ra7 {[%clk 0:00:23.9]} 105. Kf2 {[%clk 0:00:17.5]}
105... Rg7 {[%clk 0:00:23.8]} 106. Kf1 {[%clk 0:00:18.2]} 106... Rg1+ {[%clk
0:00:22.7]} 107. Kf2 {[%clk 0:00:19.3]} 107... Rg2+ {[%clk 0:00:23.6]} 108. Kf1
{[%clk 0:00:20.4]} 108... Ra2 {[%clk 0:00:24]} 109. Rf7 {[%clk 0:00:20.2]}
109... Ra1+ {[%clk 0:00:23.8]} 110. Kf2 {[%clk 0:00:20.6]} 110... Ra2+ {[%clk
0:00:23.6]} 111. Kf1 {[%clk 0:00:21.7]} 111... Rg2 {[%clk 0:00:24.4]} 112. Rf8
{[%clk 0:00:21.1]} 112... Rg7 {[%clk 0:00:24.8]} 113. Kf2 {[%clk 0:00:21.7]}
113... Rc7 {[%clk 0:00:24.5]} 114. Kf1 {[%clk 0:00:22.1]} 114... Rc1+ {[%clk
0:00:21.4]} 115. Kf2 {[%clk 0:00:23.1]} 115... Rc3 {[%clk 0:00:20.2]} 116. Kf1
{[%clk 0:00:23.2]} 116... Rc2 {[%clk 0:00:20.9]} 117. Rf7 {[%clk 0:00:21.2]}
117... Ra2 {[%clk 0:00:19.6]} 1/2-1/2